Cogmind - Beta 16.1 @@@ ROGUE MODE // 2026.03.07 @ 10:27:13 Player: FL-IST Result: Destroyed by Y-72 Warden with Quantum Rifle Performance ------------- Evolutions (8) 4000 Regions Visited (23) 4600 Robots Destroyed (301) 1505 Value Destroyed (10017) 10017 Prototype IDs (120) 2400 Alien Tech Used (4) 800 Bonus (15444) 15444 TOTAL SCORE: 38766 Bonus ------- High Alert Combat Kills 4276 Follower Combat Kills 719 Registered with UFD 300 Met Optimus in HQ 500 Met Zhirov 300 Executed Drillbomb Mission 10000 Friendly Fire -651 Cogmind --------- Core Integrity 0/1450 Matter 295/300 Energy 90/100 System Corruption 8% Temperature Cool (9) Movement Core (50) Location -2/Protoforge Parts ------- > --- POWER (2) -------- (None) > --- PROPULSION (7) --- (None) > --- UTILITY (12) ----- (None) > --- WEAPON (2) ------- (None) > --- INVENTORY (5) ---- Heavy Armor Plating Phase Redirector Cooled Nova Cannon Hellfire Missile Launcher Peak State ------------ > --- POWER ------------ Improved Quantum Reactor Concept Zero-point Core > --- PROPULSION ------- Shield Leg Enhanced Biometal Leg Enhanced Biometal Leg Heavy Shield Leg Heavy Shield Leg > --- UTILITY ---------- Advanced Power Amplifier Experimental Cooling System Experimental Targeting Computer Experimental Core Analyzer Experimental Core Analyzer Experimental Weapon Cycler Experimental Weapon Shielding Centrium Heavy Armor Plating Medium Regenerative Plating Experimental Remote Shield Phase Redirector > --- WEAPON ----------- Compact HERF Cannon Hellfire Missile Launcher > --- INVENTORY -------- Centrium Light Armor Plating Phase Redirector Compact HERF Cannon Cooled Nova Cannon [Rating: 211] Favorites ----------- Power Cold Fusion Reactor Engine Heavy Ion Engine Power Core Light Nuclear Core Reactor Cold Fusion Reactor Propulsion Improved Cesium-ion Thruster Treads Armored Treads Leg Enhanced Biometal Leg Wheel Compact Wheel Flight Unit Improved Cesium-ion Thruster Utility Advanced Hacking Suite Device Experimental Sensor Array Storage High-capacity Storage Unit Processor Advanced Signal Interpreter Hackware Advanced Hacking Suite Protection Medium Regenerative Plating Artifact Phase Redirector Weapon Makeshift Axe Energy Gun Medium Laser Energy Cannon Compact HERF Cannon Ballistic Gun Enhanced Autogun Ballistic Cannon Gauss Cannon Launcher Rocket Array Special Weapon Improved Plasma Cutter Impact Weapon Power Maul Slashing Weapon Makeshift Axe Build | -11 -10 -10 -10 -9 -8 -7 -7 -7 -7 -5 -5 -4 -4 -4 -4 -4 -4 -3 -3 -3 -2 -2 -2 ------- Run | Yrd Mat Min Exi Min Mat Fac Sto Rec Scr Fac Ext Fac Was Fac Upp Upp Zhi Pro Res Tes Res Qua Frg Slots Evolved 16 | . . . . . 4 2 . . . 4 . 2 . . . . . . 2 . 2 . . Power 1 | . . . . . . . . . . . . 1 . . . . . . . . . . . Propulsion 5 | . . . . . 2 1 . . . 1 . . . . . . . . . . 1 . . Utility 10 | . . . . . 2 1 . . . 3 . 1 . . . . . . 2 . 1 . . Weapon . | . . . . . . . . . . . . . . . . . . . . . . . . Parts Attached 179 | 7 7 1 2 1 23 33 2 1 6 12 7 8 1 3 3 2 5 2 8 6 1 . 38 Power 19 | 1 1 . . 1 2 1 1 . 1 . . 2 . . 1 2 1 . 1 . . . 4 Engine 6 | 1 . . . 1 2 . . . . . . . . . 1 1 . . . . . . . Core 6 | . 1 . . . . 1 . . 1 . . 1 . . . 1 . . . . . . 1 Reactor 7 | . . . . . . . 1 . . . . 1 . . . . 1 . 1 . . . 3 Propulsion 50 | 2 1 1 . . 10 13 . . . 1 . 2 . . . . . . 3 2 1 . 14 Treads 15 | 1 . 1 . . 9 3 . . . . . . . . . . . . . . . . 1 Leg 10 | . . . . . . . . . . . . . . . . . . . . . . . 10 Wheel 4 | 1 1 . . . 1 . . . . . . . . . . . . . . . . . 1 Hover . | . . . . . . . . . . . . . . . . . . . . . . . . Flight 21 | . . . . . . 10 . . . 1 . 2 . . . . . . 3 2 1 . 2 Utility 81 | 2 2 . 1 . 6 13 . . 4 11 6 2 1 3 1 . 4 2 4 2 . . 17 Device 34 | 1 1 . 1 . 1 4 . . 2 2 2 1 1 3 1 . 2 2 3 2 . . 5 Storage 7 | 1 1 . . . . . . . 2 . . . . . . . 1 . . . . . 2 Processor 9 | . . . . . 2 1 . . . 1 . . . . . . . . . . . . 5 Hackware 20 | . . . . . . 7 . . . 8 3 1 . . . . . . 1 . . . . Protection 9 | . . . . . 3 1 . . . . 1 . . . . . 1 . . . . . 3 Artifact 2 | . . . . . . . . . . . . . . . . . . . . . . . 2 Weapon 29 | 2 3 . 1 . 5 6 1 1 1 . 1 2 . . 1 . . . . 2 . . 3 Energy Gun 2 | 1 1 . . . . . . . . . . . . . . . . . . . . . . Energy Cannon 5 | . . . . . 2 . . . . . . . . . . . . . . 1 . . 2 Ballistic Gun 8 | 1 2 . 1 . 3 1 . . . . . . . . . . . . . . . . . Ballistic Cannon 2 | . . . . . . 2 . . . . . . . . . . . . . . . . . Launcher 4 | . . . . . . 1 1 . . . . . . . 1 . . . . . . . 1 Special Weapon 4 | . . . . . . . . . . . 1 2 . . . . . . . 1 . . . Impact Weapon 1 | . . . . . . 1 . . . . . . . . . . . . . . . . . Slashing Weapon 3 | . . . . . . 1 . 1 1 . . . . . . . . . . . . . . Piercing Weapon . | . . . . . . . . . . . . . . . . . . . . . . . . Special Melee Weapon . | . . . . . . . . . . . . . . . . . . . . . . . . Unidentified Prototypes 28 | . . . . . 2 2 2 . . . 2 . . . . . 5 . . 2 . . 13 Parts Lost 41 | . 3 2 . . 9 . 1 . . . . 3 . 3 1 . . . . . . . 19 Power 8 | . . . . . 1 . . . . . . . . 3 . . . . . . . . 4 Propulsion 15 | . 1 1 . . 5 . . . . . . 1 . . 1 . . . . . . . 6 Utility 13 | . 1 . . . 2 . 1 . . . . 1 . . . . . . . . . . 8 Weapon 5 | . 1 1 . . 1 . . . . . . 1 . . . . . . . . . . 1 Highest Loss Streak 7 | . 2 1 . . 4 . 1 . . . . 3 . 1 1 . . . . . . . 7 To Critical Strikes 4 | . . . . . 1 . . . . . . . . . . . . . . . . . 3 Average Backups 10 | 3 7 14 15 19 19 13 8 8 11 9 9 9 9 9 8 8 9 10 9 4 2 4 3 Power 1 | . 1 1 1 2 2 1 1 2 2 2 2 1 2 . . . . . . . . . . Propulsion 2 | 1 1 4 5 7 6 3 1 1 1 . . 1 2 1 . . . . . . . . . Utility 3 | . 1 3 3 4 5 5 5 5 6 4 4 3 4 5 6 7 8 8 6 1 . . 1 Weapon 2 | . 3 5 5 5 5 2 . . . . . . . . . 1 . . . 1 1 2 1 Tool/Special . | . . . . . . . . . . . . . . . . . . . . . . . . Unused Backups 26 | . . . . . 6 7 . . . 1 . . . 2 . 1 . 1 3 1 . 1 3 Power 4 | . . . . . . 1 . . . . . . . 1 . . . . . 1 . . 1 Propulsion 7 | . . . . . 3 3 . . . . . . . 1 . . . . . . . . . Utility 7 | . . . . . . . . . . . . . . . . 1 . 1 3 . . . 2 Weapon 5 | . . . . . 2 3 . . . . . . . . . . . . . . . . . Tool/Special 3 | . . . . . 1 . . . . 1 . . . . . . . . . . . 1 . Average Slot Usage (%) 92 | . 86 84 88 100 95 93 100 100 100 99 99 94 100 98 90 94 93 94 93 94 91 90 85 Engine 2 | . 1 . . 12 7 3 . . . . . . . . 4 4 4 5 3 . . . . Core 3 | . 9 14 14 1 . 3 1 . . . . 7 5 4 . . . . . . . . 2 Reactor 3 | . . . . . . . 6 7 7 5 5 2 5 4 . . 4 5 4 9 8 8 4 Treads 8 | . 13 13 14 14 34 17 . . . . . . . . . . . . . . . . . Leg 2 | . . . . . . . . . . . . . . . . . . . . . . . 12 Wheel 2 | . 13 14 14 14 . . . . . . . . . . . . . . . . . . . Flight 16 | . . . . . . 18 38 38 38 34 35 31 31 31 30 31 31 31 28 26 26 26 8 Device 10 | . 5 . 2 14 8 9 7 7 7 9 3 7 5 5 9 10 5 8 9 28 26 26 19 Storage 6 | . 14 14 14 14 9 7 7 7 7 5 5 5 5 5 5 5 5 5 3 . . . . Processor 5 | . . . . . 9 7 7 7 7 5 5 5 5 5 5 5 5 5 4 4 4 4 9 Hackware 10 | . . . . . . 5 15 15 15 24 29 26 31 30 26 26 26 26 27 14 13 13 4 Protection 3 | . . . . . 6 4 . . . . 1 . . . . . 4 1 2 4 7 8 11 Energy Gun 3 | . 14 14 14 14 . . . . . . . . . . . . . . . . . . . Energy Cannon 1 | . . . . . 7 1 . . . . . . . . . . . . . . . . 5 Ballistic Gun 4 | . 12 14 14 14 9 1 . . . . . . . . . . . . . . . . . Launcher 1 | . . . . . . 1 7 7 7 5 4 . . . . . . . . . . . . Slashing Weapon 2 | . . . . . . 1 7 7 7 5 5 5 5 5 5 5 5 5 4 3 3 3 1 Peak Build Rating 211 | 7 10 10 15 15 36 59 59 58 64 89 91 108 102 108 97 102 105 108 130 153 167 166 211 Average Rating 82 | 5 8 9 11 14 31 43 55 57 62 82 89 98 101 104 92 97 100 100 115 134 156 156 185 On Entrance 74 | . 7 10 9 15 14 36 59 57 58 64 86 88 102 102 96 97 100 105 101 129 142 163 158 Avg Prop Armor Cover (%) 8 | 3 10 13 13 13 21 . . . . . . . . . 5 5 6 . . . 2 2 3 Naked Turns 8 | . . . . . . . . . . . . . . . . . . . . . . . 8 Heaviest Build 139 | 14 51 50 52 52 70 72 28 29 43 43 40 48 34 41 22 23 41 34 46 51 57 47 139 Greatest Support 205 | 20 20 16 16 16 80 108 30 30 30 36 36 37 37 37 37 24 37 37 49 62 72 72 205 Greatest Overweight (x) 15 | . 3 3 3 3 15 . . . 1 1 1 1 . 1 . . 1 . 1 1 1 . 5 Average Overweight (x) . | . 1 3 3 3 . . . . . . . . . . . . . . . . . . . Largest Inventory Capacity 25 | 8 20 20 20 20 20 20 8 8 15 15 10 10 10 10 10 10 10 10 10 5 5 5 25 Average Capacity 12 | 7 15 20 20 20 20 14 8 8 13 10 10 10 10 10 10 10 10 10 9 5 5 5 6 Most Carried 20 | 4 15 15 20 20 20 20 8 8 13 13 10 10 10 10 10 10 10 10 10 5 4 5 15 Average Carried 10 | 3 7 14 15 19 19 13 7 8 11 9 9 9 10 9 9 9 9 9 9 4 2 4 4 Final Capacity 20 | 8 20 20 20 20 20 8 8 8 15 10 10 10 10 10 10 10 10 10 5 5 5 5 5 Final Carried 20 | 4 15 14 20 20 20 8 8 8 13 10 10 10 10 10 10 10 10 10 5 5 3 5 5 Class Distribution -------------------- 36% | Mutant 22% | Hacker-Sprinter 17% | Wizard-Sprinter 13% | Scavenger-Mutant 4% | Wizard-Mutant 3% | Hacker-Mutant Dominant Class ---------------- Mutant | -10/Materials Mutant | -10/Mines Mutant | -10/Exiles Mutant | -9/Mines Mutant | -8/Materials Mutant | -7/Factory Hacker-Sprinter | -7/Storage Hacker-Sprinter | -7/Recycling Hacker-Mutant | -7/Scraptown Hacker-Sprinter | -5/Factory Wizard-Sprinter | -5/Extension Wizard-Sprinter | -4/Factory Wizard-Sprinter | -4/Waste Wizard-Sprinter | -4/Factory Wizard-Sprinter | -4/Upper Caves Wizard-Sprinter | -4/Upper Caves Wizard-Mutant | -4/Zhirov Wizard-Sprinter | -3/Proximity Caves Wizard-Sprinter | -3/Research Hacker-Sprinter | -3/Testing Hacker-Sprinter | -2/Research Hacker-Sprinter | -2/Quarantine Scavenger-Mutant | -2/Protoforge Resources | -11 -10 -10 -10 -9 -8 -7 -7 -7 -7 -5 -5 -4 -4 -4 -4 -4 -4 -3 -3 -3 -2 -2 -2 ----------- Run | Yrd Mat Min Exi Min Mat Fac Sto Rec Scr Fac Ext Fac Was Fac Upp Upp Zhi Pro Res Tes Res Qua Frg Matter Collected 6554 | 300 236 81 104 54 968 621 49 19 38 220 265 245 275 47 97 60 129 110 86 152 88 . 2310 Remotely . | . . . . . . . . . . . . . . . . . . . . . . . . Salvage Created 13446 | 277 583 287 411 186 2236 1109 67 727 . 817 1011 524 74 189 103 42 430 . 400 181 165 . 3627 Parts 593 | 20 30 26 23 10 133 49 4 21 . 38 29 24 1 13 5 3 7 . 13 9 9 . 126 Haulers Intercepted 11 | . 1 . . . 4 2 1 . . . . . . . . . . . 3 . . . . Recyclers Shooed 11 | . 2 . . 1 2 2 . 2 . . . 1 . . . . . . 1 . . . . Parts Field Recycled . | . . . . . . . . . . . . . . . . . . . . . . . . Retrieved Matter . | . . . . . . . . . . . . . . . . . . . . . . . . Parts Self-Destructed 8 | . . . . . . . . . . . . . . . 1 . 4 3 . . . . . Prevented 2 | . . . . . . . . . . . . . . . 2 . . . . . . . . Parts Restored . | . . . . . . . . . . . . . . . . . . . . . . . . Kills | -11 -10 -10 -10 -9 -8 -7 -7 -7 -7 -5 -5 -4 -4 -4 -4 -4 -4 -3 -3 -3 -2 -2 -2 ------- Run | Yrd Mat Min Exi Min Mat Fac Sto Rec Scr Fac Ext Fac Was Fac Upp Upp Zhi Pro Res Tes Res Qua Frg Combat Hostiles Destroyed 162 | . 9 6 2 4 33 9 . . . 8 6 5 . 1 . . . 1 4 . . . 74 Melee 4 | . . . . . . . . . . 1 1 . . 1 . . . . . . . . 1 Guns 43 | . 9 6 2 4 21 1 . . . . . . . . . . . . . . . . . Cannons 36 | . . . . . 11 4 . . . . . . . . . . . . . . . . 21 AOE 71 | . . . . . . 3 . . . 7 5 5 . . . . . 1 4 . . . 46 Classes Destroyed 25 | 3 6 . 1 . 2 1 . . . 1 2 . . 1 2 . . . . . . . 6 Worker 23 | 2 1 2 . . 4 4 . . . 3 1 3 . 1 . . . . 1 . 1 . . Builder 14 | . 1 . . . . 4 . 1 . 2 3 2 . . . . . . . . 1 . . Tunneler 10 | 7 . 3 . . . . . . . . . . . . . . . . . . . . . Hauler 11 | . 1 . . . 4 2 1 . . . . . . . . . . . 3 . . . . Recycler 38 | 1 2 . . 1 6 6 . 9 . 3 5 2 . 1 . . . . . 1 1 . . Minesweeper 1 | . . . . . . . . . . . . . . . 1 . . . . . . . . Mechanic 9 | . . . . . . . . . . 1 . . . . . . . . . . . . 8 Operator 10 | . 1 . . . 1 2 1 . . 1 1 . . 1 . . . . . 2 . . . Drone 8 | . . . . . . . . . . . . . . 1 . . . 1 . . . . 6 Watcher 17 | . 3 . . . 3 2 . . . 4 1 1 . 1 . . . . . . . . 2 Swarmer 50 | . 3 2 . 3 11 3 . . . 8 . 4 . . . . . . 4 . . . 12 Saboteur 2 | . . . . . . . . . . . . . . . . . . . . . . . 2 Grunt 41 | . 6 4 1 1 12 2 . . . . 5 . . . . . . . . . . . 10 Brawler 4 | . . . . . 1 . . . . . . . . . . . . . . . . . 3 Duelist 5 | . . . . . . . . . . . . . . . . . . . . . . . 5 Protector 7 | . . . . . . . . . . . . . . . . . . . . . . . 7 Sentry 8 | . . . . . 7 1 . . . . . . . . . . . . . . . . . Hunter 15 | . . . 1 . 2 1 . . . . . . . . . . . . . . . . 11 Programmer 6 | . . . . . . 2 . . . . . 1 . . . . . . . . . . 3 Behemoth 1 | . . . . . . . . . . . 1 . . . . . . . . . . . . Striker 5 | . . . . . . . . . . . . . . . . . . . . . . . 5 Executioner 10 | . . . . . . . . . . . . . . . . . . . . . . . 10 Scrapper 1 | . . . . . . . . . . . . . . . . . . . . . . . 1 Scrapoid 1 | . . . . . . . . . . . . . . . . . . . . . . . 1 Decomposer 1 | . . . . . . . . . . . . . . . . 1 . . . . . . . Samaritan 3 | . . . . . . . . . . . . . . . 2 1 . . . . . . . Butcher 2 | . . . . . . . . . . . 2 . . . . . . . . . . . . Guerrilla 3 | . . . . . . . . . . . 1 2 . . . . . . . . . . . Best Kill Streak 14 | 5 4 2 1 2 12 6 1 6 . 6 6 8 . 2 1 . . 1 4 1 1 . 14 Combat Bots Only 13 | . 3 2 1 2 6 3 . . . 4 3 5 . 1 . . . 1 4 . . . 13 Max Kills in Single Turn 5 | 1 1 1 1 2 2 3 1 1 . 4 4 4 . 1 1 1 . 1 2 1 1 . 5 Gunslinging 1 | . . . . . 1 . . . . . . . . . . . . . . . . . . Exploded 5 | . . . . . . 2 . . . 4 3 4 . . . . . 1 2 . . . 5 Melee 1 | . . . . . . . . . . 1 1 . . 1 . . . . . . . . 1 Uniques/NPCs Destroyed . | . . . . . . . . . . . . . . . . . . . . . . . . Combat | -11 -10 -10 -10 -9 -8 -7 -7 -7 -7 -5 -5 -4 -4 -4 -4 -4 -4 -3 -3 -3 -2 -2 -2 -------- Run | Yrd Mat Min Exi Min Mat Fac Sto Rec Scr Fac Ext Fac Was Fac Upp Upp Zhi Pro Res Tes Res Qua Frg Hostile Shots Fired 1075 | . 65 22 . 10 246 125 . . . 35 18 43 . 42 2 2 . . 3 . 28 5 429 Missed 414 | . 17 7 . 1 58 48 . . . 19 9 24 . 18 . 1 . . 3 . 19 2 188 Deflected 2 | . . . . . . . . . . . . . . . . . . . . . . . 2 Hits 661 | . 48 15 . 9 188 77 . . . 16 9 19 . 24 2 1 . . . . 9 3 241 Melee 20 | . . . . . 3 . . . . . . . . . . . . . . . . . 17 Projectile 641 | . 48 15 . 9 185 77 . . . 16 9 19 . 24 2 1 . . . . 9 3 224 Critical Strikes 46 | . 1 . . . 15 2 . . . . 1 1 . . . 1 . . . . 1 . 24 Actively Blocked 3 | . . . . . . . . . . . . . . . . . . . . . . . 3 Damage Taken 12233 | . 552 193 . 76 2430 807 69 . . 244 252 399 . 683 39 16 . . . . 196 179 6098 Core 2366 | . 169 . . 7 255 38 . . . 78 94 39 . 279 . 16 . . . . 46 54 1291 Absorbed by Shields 1470 | . . . . . . . . . . . 71 . . 41 . . . . . . . . 1358 Redirected to Core 507 | . . . . . . . . . . . . . . . . . . . . . . . 507 Redirected to Shielding 335 | . . . . . . . . . . . . . . . . . . . . . 44 42 249 Regen/Repaired (Parts) 1482 | . . . . . . 26 . . . . 123 117 . 85 . . 278 . . 46 21 59 727 Core Remaining (%) 75 | 100 . . . 29 53 . . . 94 . 82 . . . . . . 70 . 100 . . . Volleys Fired 576 | 30 66 23 25 11 149 42 . . . 2 9 5 . . . . . 1 2 2 20 6 183 Largest 2 | 2 2 2 2 2 2 2 . . . 1 1 1 . . . . . 1 1 1 1 1 2 Hottest 188 | 70 85 85 78 78 85 85 . . . 45 45 45 . . . . . 49 49 50 50 50 188 Shots Fired 1012 | 59 127 45 50 22 298 82 . . . 2 9 5 . . . . . 1 2 2 20 6 282 Gun 509 | 59 127 45 50 22 171 35 . . . . . . . . . . . . . . . . . Cannon 436 | . . . . . 127 45 . . . . . . . . . . . . . 1 20 6 237 Launcher 65 | . . . . . . 2 . . . 2 8 5 . . . . . 1 2 . . . 45 Special 2 | . . . . . . . . . . . 1 . . . . . . . . 1 . . . Kinetic 364 | 30 72 23 25 11 158 45 . . . . . . . . . . . . . . . . . Thermal 383 | 29 55 22 25 11 140 35 . . . . . . . . . . . . . 1 20 6 39 Explosive 65 | . . . . . . 2 . . . 2 8 5 . . . . . 1 2 . . . 45 Electromagnetic 198 | . . . . . . . . . . . . . . . . . . . . . . . 198 Robot Hit Streak 28 | 8 8 10 7 7 28 17 . . . . 3 5 . . . . . . 1 1 . . 10 Robot Miss Streak 6 | 4 3 3 2 1 6 3 . . . 6 4 3 . . . . . . 1 . . . 6 Penetration Max 1 | . . . . . 1 . . . . . . . . . . . . . . . . . . Secondary Targets 1 | . . . . . 1 . . . . . . . . . . . . . . . . . . Max Gunslinging Chain 1 | . . . . . 1 . . . . . . . . . . . . . . . . . . Shots Hit Robots 761 | 31 84 28 32 17 204 70 4 14 . 25 22 17 1 7 3 3 8 . 15 24 3 . 149 Core Hits 540 | 14 33 16 14 6 79 28 1 4 . 24 68 38 1 5 2 2 5 1 11 3 2 . 183 Critical Kills 2 | . . . . . 2 . . . . . . . . . . . . . . . . . . Critical Parts Destroyed 4 | . . . . . 2 2 . . . . . . . . . . . . . . . . . Critical Strikes 18 | 2 1 . 1 . 5 2 . . . . 3 . . . . . . . . 3 . . 1 Burn 5 | 2 1 . 1 . 1 . . . . . . . . . . . . . . . . . . Meltdown 1 | . . . . . 1 . . . . . . . . . . . . . . . . . . Destroy 4 | . . . . . 3 1 . . . . . . . . . . . . . . . . . Corrupt 1 | . . . . . . . . . . . . . . . . . . . . . . . 1 Smash 1 | . . . . . . 1 . . . . . . . . . . . . . . . . . Sever 6 | . . . . . . . . . . . 3 . . . . . . . . 3 . . . Melee Attacks 385 | . . . . . . 47 6 21 . 102 28 30 1 16 3 3 8 2 29 37 15 6 31 Impact 32 | . . . . . . 32 . . . . . . . . . . . . . . . . . Slashing 353 | . . . . . . 15 6 21 . 102 28 30 1 16 3 3 8 2 29 37 15 6 31 Piercing . | . . . . . . . . . . . . . . . . . . . . . . . . Sneak Attacks 96 | . . . . . . 11 4 10 . 12 6 9 . 4 3 3 . . 5 21 3 . 5 Combat Hostiles . | . . . . . . . . . . . . . . . . . . . . . . . . Follow-up Attacks . | . . . . . . . . . . . . . . . . . . . . . . . . Damage Inflicted 40984 | 324 1066 408 519 277 3690 2613 359 1006 . 2113 3139 1688 93 471 262 245 624 107 1187 1771 243 . 18779 Guns 5175 | 324 1062 408 519 277 2146 439 . . . . . . . . . . . . . . . . . Cannons 6802 | . . . . . 1540 550 . . . . . . . . . . . . . . . . 4712 Explosions 17661 | . . . . . . 217 . . . 458 2156 861 . . . . . 107 440 . . . 13422 Melee 11255 | . . . . . . 1384 359 1006 . 1655 983 827 93 471 262 245 624 . 747 1771 243 . 585 Ramming 91 | . 4 . . . 4 23 . . . . . . . . . . . . . . . . 60 Kinetic 3806 | 122 485 183 289 201 2018 508 . . . . . . . . . . . . . . . . . Thermal 3562 | 202 577 225 230 76 1668 481 . . . . . . . . . . . . . . . . 103 Explosive 17599 | . . . . . . 217 . . . 458 2156 861 . . . . . 107 440 . . . 13360 Electromagnetic 4671 | . . . . . . . . . . . . . . . . . . . . . . . 4671 Impact 1080 | . . . . . . 1080 . . . . . . . . . . . . . . . . . Slashing 10175 | . . . . . . 304 359 1006 . 1655 983 827 93 471 262 245 624 . 747 1771 243 . 585 Piercing . | . . . . . . . . . . . . . . . . . . . . . . . . Highest Corruption 8 | . . . . . 7 1 1 1 . . . . . 2 2 2 2 2 . . . . 8 Average Corruption 3 | . . . . . 5 1 1 1 . . . . . 1 2 2 2 2 . . . . 4 Corruption Purged 1 | . . . . . . 1 . . . . . . . . . . . . . . . . . Corruption Blocked . | . . . . . . . . . . . . . . . . . . . . . . . . Effects 164 | . . . . . 48 9 . 3 . . . . . 3 6 1 8 1 . . . . 85 Message Errors 28 | . . . . . 8 3 . 1 . . . . . 1 1 . . 1 . . . . 13 Matter Fused 44 | . . . . . 11 3 . 2 . . . . . . 1 . 2 . . . . . 25 Heat Flow Errors 23 | . . . . . 7 . . . . . . . . . 1 1 1 . . . . . 13 Energy Discharges 24 | . . . . . 9 1 . . . . . . . . . . 2 . . . . . 12 Parts Rejected 3 | . . . . . 1 . . . . . . . . 1 . . . . . . . . 1 Parts Fused 5 | . . . . . 2 . . . . . . . . . . . . . . . . . 3 Data Loss (minor) 20 | . . . . . 4 1 . . . . . . . 1 2 . 1 . . . . . 11 Data Loss (major) 5 | . . . . . 2 1 . . . . . . . . . . 1 . . . . . 1 Misfires 3 | . . . . . 2 . . . . . . . . . . . . . . . . . 1 Alerts 3 | . . . . . . . . . . . . . . . 1 . 1 . . . . . 1 Weapon Failures 6 | . . . . . 2 . . . . . . . . . . . . . . . . . 4 Overload Shots 2 | . . . . . . . . . . . . . . . . . . . . . . . 2 Overflow Damage 3265 | . . . . . . 783 117 422 . 368 188 60 . 84 99 81 117 . 56 257 39 . 594 Projectiles 85 | . . . . . . . . . . . . . . . . . . . . . . . 85 Explosions 456 | . . . . . . . . . . . 30 . . . . . . . 20 . . . 406 Melee 2724 | . . . . . . 783 117 422 . 368 158 60 . 84 99 81 117 . 36 257 39 . 103 Knockbacks 3 | . . . . . . 3 . . . . . . . . . . . . . . . . . Impact 2 | . . . . . . 2 . . . . . . . . . . . . . . . . . Kinetic 1 | . . . . . . 1 . . . . . . . . . . . . . . . . . Secondary . | . . . . . . . . . . . . . . . . . . . . . . . . Self-Inflicted Damage 90 | . . . . . . . . . . . 56 34 . . . . . . . . . . . Shots 4 | . . . . . . . . . . . 2 2 . . . . . . . . . . . Rammed 4 | . 2 . . . 1 1 . . . . . . . . . . . . . . . . . Targets Rammed 6 | . 2 . . . 1 1 . . . . . . . . . . . . . . . . 2 Kicked 2 | . . . . . . . . . . . . . . . . . . . . . . . 2 Crushed . | . . . . . . . . . . . . . . . . . . . . . . . . Highest Temperature 417 | 130 306 194 96 54 417 126 17 1 1 28 125 228 9 310 217 219 221 5 12 1 55 . 214 Average Temperature 52 | 49 91 71 39 27 100 24 4 1 1 7 22 111 9 103 60 114 133 5 5 1 25 . 73 Received Heat Transfer 1973 | . 231 96 . . 954 171 . . . . 19 18 . 39 21 . . . . . . 9 415 Effects 9 | . 2 . . . 5 . . . . . . . . 1 1 . . . . . . . . Energy Bleed 5 | . 1 . . . 2 . . . . . . . . 1 1 . . . . . . . . Interference 1 | . 1 . . . . . . . . . . . . . . . . . . . . . . Matter Decay 2 | . . . . . 2 . . . . . . . . . . . . . . . . . . Short Circuit 1 | . . . . . 1 . . . . . . . . . . . . . . . . . . Siege Activations . | . . . . . . . . . . . . . . . . . . . . . . . . Martial Activations . | . . . . . . . . . . . . . . . . . . . . . . . . Shielding Activations 2 | . . . . . . . . . . . . . . . . . . . . . . . 2 Total Turns 19 | . . . . . . . . . . . . . . . . . . . . . . . 19 Longest Duration 13 | . . . . . . . . . . . . . . . . . . . . . . . 13 Robots Disrupted 1 | . . . . . . . . . . . . . . . . . . . . . . . 1 Combat Hostiles 1 | . . . . . . . . . . . . . . . . . . . . . . . 1 Robots Corrupted 9 | . . . . . . 3 . . . . . . . . . . . . . . . . 6 Combat Hostiles 6 | . . . . . . . . . . . . . . . . . . . . . . . 6 Parts Fried 33 | . . . . . . 6 . . . . . . . . . . . . . . . . 27 Impact Corruptions 13 | . . . . . . 12 . . . . . . . . . . . . . . . . 1 Robots Melted 2 | . . . . . 1 1 . . . . . . . . . . . . . . . . . Combat Hostiles 2 | . . . . . 1 1 . . . . . . . . . . . . . . . . . Parts Melted 13 | 2 3 . 2 . 4 2 . . . . . . . . . . . . . . . . . Heat Transferred 8547 | 740 1591 592 703 222 3663 999 . . . . . . . . . . . . . . . . 37 Parts Sabotaged . | . . . . . . . . . . . . . . . . . . . . . . . . Parts Stolen . | . . . . . . . . . . . . . . . . . . . . . . . . Parts Stripped . | . . . . . . . . . . . . . . . . . . . . . . . . Power Chain Reactions 1 | . . . . . . . . . . . . . . . . . . . . . . . 1 Alert | -11 -10 -10 -10 -9 -8 -7 -7 -7 -7 -5 -5 -4 -4 -4 -4 -4 -4 -3 -3 -3 -2 -2 -2 ------- Run | Yrd Mat Min Exi Min Mat Fac Sto Rec Scr Fac Ext Fac Was Fac Upp Upp Zhi Pro Res Tes Res Qua Frg Maximum Alert Level 5 | . . . . . 1 1 . . . 1 2 3 1 1 . . . . 2 . . . 5 Low Security (%) 58 | 100 100 100 . 100 53 99 100 100 . 25 15 . . 82 . . . . 14 100 100 100 23 Level 1 19 | . . . . . 46 . . . . 74 20 71 100 17 . . . . 73 . . . 3 Level 2 6 | . . . . . . . . . . . 64 23 . . . . . . 11 . . . 2 Level 3 2 | . . . . . . . . . . . . 5 . . . . . . . . . . 9 Level 4 8 | . . . . . . . . . . . . . . . . . . . . . . . 38 Level 5 4 | . . . . . . . . . . . . . . . . . . . . . . . 22 High Security . | . . . . . . . . . . . . . . . . . . . . . . . . Max Security . | . . . . . . . . . . . . . . . . . . . . . . . . Peak Influence 2373 | 20 84 50 . 45 329 202 124 153 . 367 636 724 251 240 . . . . 453 95 117 80 2373 Initial 308 | . . . . . . 140 90 37 . . 166 308 251 147 . . . . 300 90 . 63 39 Average 363 | 3 19 11 . 6 196 71 102 115 . 250 388 361 233 166 . . . . 296 26 36 29 1131 Influence Increases 9723 | 50 318 190 60 110 998 615 77 211 . 845 995 692 . 242 35 45 15 5 631 141 236 147 3065 Destroy 0b10 Robot/C 3260 | . 180 120 40 80 660 180 . . . 160 420 100 . . . . . . 80 20 . . 1220 Destroy 0b10 Robot/NC 790 | 50 45 25 20 5 90 100 5 50 . 70 65 40 . 25 5 . 15 5 20 25 15 . 115 Destroy Leader 660 | . 48 30 . 10 174 68 2 . . 28 54 22 . 2 . . . . 16 12 . . 194 Allied During Kill 135 | . . . . . . . . . . . 125 . . . . . . . . 10 . . . Trap Triggered on 0b10 70 | . . . . . . . . . . . . . . 20 . . . . 50 . . . . Successful Hack 250 | . 29 . . . 22 46 9 35 . 18 . 28 . 20 . . . . 8 6 8 . 21 Select Force Hacks 90 | . . . . . . . . 90 . . . . . . . . . . . . . . . Disable Machine 405 | . . . . . 15 45 15 . . 75 15 60 . 15 . . . . 30 30 15 30 60 Anti-Garrison Action 150 | . . . . . . . . . . . . . . . . . . . . . . . 150 Destroy Structure 1168 | . 1 . . . 7 41 1 6 . 224 106 172 . 10 . . . . 112 38 63 27 360 Advance Influence 300 | . . . . . . . . . . . . . . . . . . . 300 . . . . Partial Spotted 420 | . . . . . 15 15 30 . . 105 135 30 . 30 . . . . 15 . 45 . . Lose Combat Pursuer 2025 | . 15 15 . 15 15 120 15 30 . 165 75 240 . 120 30 45 . . . . 90 90 945 Influence Decreases 7446 | 50 318 190 60 110 688 726 179 230 78 505 706 603 507 264 224 10 50 5 470 302 124 189 858 Entered New Map 1700 | . . . . . . 170 109 60 78 . 174 321 467 64 71 . 35 . . 71 . 49 31 Time Decay 5025 | 50 310 190 60 110 598 556 60 170 . 475 452 222 40 170 150 10 15 5 270 211 124 140 637 Search Patrol Dispatched 200 | . . . . . . . . . . . . . . . . . . . 200 . . . . Lost Part 361 | . 8 . . . 90 . 10 . . . . 30 . 30 3 . . . . . . . 190 Lost Ally 160 | . . . . . . . . . . 30 80 30 . . . . . . . 20 . . . Squads Dispatched 69 | . 2 . . . 6 9 . . . 13 4 5 . 5 . . . . 3 3 6 3 10 Investigation 31 | . 1 . . . 2 3 . . . 10 1 3 . 4 . . . . 1 . 2 . 4 Extermination 18 | . . . . . . 4 . . . 3 . 1 . 1 . . . . 1 1 3 2 2 Reinforcement 18 | . 1 . . . 3 2 . . . . 2 1 . . . . . . 1 2 1 1 4 Assault 1 | . . . . . . . . . . . 1 . . . . . . . . . . . . Garrison 1 | . . . . . 1 . . . . . . . . . . . . . . . . . . Intercept . | . . . . . . . . . . . . . . . . . . . . . . . . Searches Triggered 2 | . . . . . . . . . . . . . . . . . . . 2 . . . . Construction Impeded 2 | . . . . . . . . . . . 1 1 . . . . . . . . . . . Haulers Reinforced . | . . . . . . . . . . . . . . . . . . . . . . . . Active Scanning Responses . | . . . . . . . . . . . . . . . . . . . . . . . . Cargo Convoy Interrupts . | . . . . . . . . . . . . . . . . . . . . . . . . Stealth | -11 -10 -10 -10 -9 -8 -7 -7 -7 -7 -5 -5 -4 -4 -4 -4 -4 -4 -3 -3 -3 -2 -2 -2 --------- Run | Yrd Mat Min Exi Min Mat Fac Sto Rec Scr Fac Ext Fac Was Fac Upp Upp Zhi Pro Res Tes Res Qua Frg Distress Signals 23 | . 1 . . . 8 . 1 . . . 2 2 . . . . . . . . . . 9 Communications Jammed 16 | . . . . . . . . . . . . . . . . . . . . 3 7 . 6 Distress Signals 16 | . . . . . . . . . . . . . . . . . . . . 3 7 . 6 Times Spotted 493 | . 19 7 . 4 58 29 1 1 . 39 25 32 . 17 1 2 . 1 4 5 15 6 227 Peak Tracking Total 30 | . 4 2 . 3 7 6 2 2 . 8 6 13 . 11 3 4 . 1 2 2 7 6 30 Tactical Retreats 53 | . 1 1 . 1 1 6 1 1 . 6 3 4 . 2 1 1 . . . . 3 2 19 Traps | -11 -10 -10 -10 -9 -8 -7 -7 -7 -7 -5 -5 -4 -4 -4 -4 -4 -4 -3 -3 -3 -2 -2 -2 ------- Run | Yrd Mat Min Exi Min Mat Fac Sto Rec Scr Fac Ext Fac Was Fac Upp Upp Zhi Pro Res Tes Res Qua Frg Traps Triggered 29 | . 5 . . . . 7 1 . . . 1 1 . 4 . . . . . 5 . 1 4 Indirectly . | . . . . . . . . . . . . . . . . . . . . . . . . Trap Hack Attempts . | . . . . . . . . . . . . . . . . . . . . . . . . Triggered . | . . . . . . . . . . . . . . . . . . . . . . . . Disarmed . | . . . . . . . . . . . . . . . . . . . . . . . . Reprogrammed 13 | . . . . . . . . . . . . . . 7 . . . . 6 . . . . Reused 8 | . . . . . . . . . . . . . . 2 1 . . . 5 . . . . Traps Extracted . | . . . . . . . . . . . . . . . . . . . . . . . . Installed 6 | . . . . . . . . . . . . . . . 6 . . . . . . . . Triggered 8 | . . . . . . . . . . . . . . 2 1 . . . 5 . . . . Most Traps Carried 4 | . . . . . . . . . . . . . . . 4 1 1 . . . . . . Machines | -11 -10 -10 -10 -9 -8 -7 -7 -7 -7 -5 -5 -4 -4 -4 -4 -4 -4 -3 -3 -3 -2 -2 -2 ---------- Run | Yrd Mat Min Exi Min Mat Fac Sto Rec Scr Fac Ext Fac Was Fac Upp Upp Zhi Pro Res Tes Res Qua Frg Machines Disabled 31 | . . . . . 1 3 1 . . 5 1 4 . 1 . . . . 2 2 1 2 8 Max in Single Turn 4 | . . . . . 1 1 1 . . 4 . 4 . 1 . . . . 1 1 1 1 1 Garrison Access 10 | . . . . . . 2 . . . 3 . . . 1 . . . . 2 1 . . 1 Machines Repaired . | . . . . . . . . . . . . . . . . . . . . . . . . Machines Dismantled . | . . . . . . . . . . . . . . . . . . . . . . . . Machines Sabotaged . | . . . . . . . . . . . . . . . . . . . . . . . . Overloaded Fab Kills . | . . . . . . . . . . . . . . . . . . . . . . . . Hacking | -11 -10 -10 -10 -9 -8 -7 -7 -7 -7 -5 -5 -4 -4 -4 -4 -4 -4 -3 -3 -3 -2 -2 -2 --------- Run | Yrd Mat Min Exi Min Mat Fac Sto Rec Scr Fac Ext Fac Was Fac Upp Upp Zhi Pro Res Tes Res Qua Frg Machines Accessed 132 | . 5 . 2 . 7 14 3 9 1 29 8 10 . 11 1 . 4 . 6 5 4 5 8 Terminals 70 | . 5 . . . 5 5 3 6 . 14 7 4 . 5 . . . . 3 2 2 4 5 Fabricators 12 | . . . . . . 4 . . . 5 . 2 . 1 . . . . . . . . . Repair Stations 6 | . . . . . . 1 . . . . . 2 . 2 . . . . . 1 . . . Recycling Units 21 | . . . . . . . . 3 . 7 1 2 . 2 . . . . 1 . 2 . 3 Scanalyzers 4 | . . . . . 1 2 . . . . . . . . . . . . . 1 . . . Garrison Access 11 | . . . . . 1 2 . . . 3 . . . 1 . . . . 2 1 . 1 . Total Hacks 298 | . 16 . 7 . 22 41 4 23 1 65 10 18 . 21 1 . 17 . 9 11 7 12 13 Successful 206 | . 8 . 7 . 12 31 3 12 1 50 7 12 . 14 1 . 17 . 9 8 4 2 8 Failed 90 | . 8 . . . 10 10 1 11 . 14 3 6 . 7 . . . . . 2 3 10 5 Catastrophic 11 | . . . . . 1 . . 1 . 2 1 2 . . . . . . . 1 1 1 1 Database Lockouts 2 | . . . . . . . . . . 1 . . . . . . . . . 1 . . . Manual 166 | . 15 . 1 . 17 16 2 17 . 42 5 10 . 13 . . . . 4 3 7 5 9 Terminals 151 | . 16 . . . 18 13 4 13 . 33 9 6 . 9 . . . . 5 2 5 10 8 Fabricators 38 | . . . . . . 13 . . . 18 . 3 . 4 . . . . . . . . . Repair Stations 15 | . . . . . . 2 . . . . . 7 . 3 . . . . . 3 . . . Recycling Units 35 | . . . . . . . . 10 . 11 1 2 . 2 . . . . 2 . 2 . 5 Scanalyzers 14 | . . . . . 2 7 . . . . . . . . . . . . . 5 . . . Garrison Access 19 | . . . . . 2 6 . . . 3 . . . 3 . . . . 2 1 . 2 . Terminal Hacks 69 | . 1 . 7 . 2 3 2 . 1 9 6 1 . 6 1 . 17 . 5 . 2 2 4 Record 13 | . . . 6 . . . . . . 1 . . . . . . 5 . . . . 1 . Part Schematic 7 | . . . . . . 1 . . . 1 . 1 . . . . 4 . . . . . . Robot Analysis 7 | . . . . . 2 . . . . . . . . . . . 4 . . . . 1 . Prototype ID Bank 4 | . . . . . . . . . . . . . . . . . 4 . . . . . . Open Door 7 | . . . . . . . 2 . . . 4 . . . 1 . . . . . . . . Branch Access Points 4 | . . . . . . . . . . 1 . . . 1 . . . . 1 . 1 . . Terminal Index 1 | . . . . . . . . . . 1 . . . . . . . . . . . . . Fabricator Index 2 | . . . . . . 1 . . . . . . . 1 . . . . . . . . . Scanalyzer Index 1 | . . . . . . 1 . . . . . . . . . . . . . . . . . Locate Traps 4 | . 1 . . . . . . . . . . . . 1 . . . . 1 . . . 1 Disarm Traps 1 | . . . . . . . . . . . . . . . . . . . . . . . 1 Reprogram Traps 3 | . . . . . . . . . . . . . . 2 . . . . 1 . . . . Recall Extermination 1 | . . . . . . . . . . . . . . . . . . . 1 . . . . Recall Assault 1 | . . . . . . . . . . . 1 . . . . . . . . . . . . Zone Layout 10 | . . . . . . . . . . 5 1 . . 1 . . . . 1 . 1 . 1 Proto ID Catalog 3 | . . . 1 . . . . . 1 . . . . . . . . . . . . . 1 Fabricator Hacks 22 | . . . . . . 8 . . . 10 . 2 . 2 . . . . . . . . . Network Status 3 | . . . . . . 1 . . . 1 . 1 . . . . . . . . . . . Load Schematic 12 | . . . . . . 5 . . . 5 . 1 . 1 . . . . . . . . . Build 7 | . . . . . . 2 . . . 4 . . . 1 . . . . . . . . . Repair Station Hacks 9 | . . . . . . 2 . . . . . 5 . . . . . . . 2 . . . Scan Component 5 | . . . . . . 1 . . . . . 3 . . . . . . . 1 . . . Repair 4 | . . . . . . 1 . . . . . 2 . . . . . . . 1 . . . Recycling Unit Hacks 7 | . . . . . . . . 2 . 3 1 . . . . . . . 1 . . . . Retrieve Components 7 | . . . . . . . . 2 . 3 1 . . . . . . . 1 . . . . Scanalyzer 9 | . . . . . 1 5 . . . . . . . . . . . . . 3 . . . Insert Component 4 | . . . . . 1 3 . . . . . . . . . . . . . . . . . Analyze 2 | . . . . . . 2 . . . . . . . . . . . . . . . . . Retrieve Study 3 | . . . . . . . . . . . . . . . . . . . . 3 . . . Garrison Access Hacks 9 | . . . . . . 2 . . . 3 . . . 1 . . . . 2 1 . . . Seal Access 9 | . . . . . . 2 . . . 3 . . . 1 . . . . 2 1 . . . Unauthorized Hacks 81 | . 7 . . . 9 11 1 10 . 25 . 4 . 5 . . . . 1 2 2 . 4 Terminals 49 | . 7 . . . 9 8 1 7 . 14 . 1 . . . . . . . 1 . . 1 Track 2 | . . . . . . . . . . . . . . . . . . . . 1 . . 1 Assimilate 5 | . . . . . . . 1 . . 3 . 1 . . . . . . . . . . . Botnet 17 | . 2 . . . 4 3 . 2 . 6 . . . . . . . . . . . . . Skim 25 | . 5 . . . 5 5 . 5 . 5 . . . . . . . . . . . . . Fabricators 9 | . . . . . . 3 . . . 4 . 1 . 1 . . . . . . . . . Prioritize 3 | . . . . . . . . . . 2 . . . 1 . . . . . . . . . Recompile 6 | . . . . . . 3 . . . 2 . 1 . . . . . . . . . . . Repair Stations 2 | . . . . . . . . . . . . . . 2 . . . . . . . . . Patch 2 | . . . . . . . . . . . . . . 2 . . . . . . . . . Recycling Units 20 | . . . . . . . . 3 . 7 . 2 . 2 . . . . 1 . 2 . 3 Tunnel 3 | . . . . . . . . 3 . . . . . . . . . . . . . . . Fedlink 17 | . . . . . . . . . . 7 . 2 . 2 . . . . 1 . 2 . 3 Scanalyzers 1 | . . . . . . . . . . . . . . . . . . . . 1 . . . Researchers 1 | . . . . . . . . . . . . . . . . . . . . 1 . . . Garrison Access . | . . . . . . . . . . . . . . . . . . . . . . . . Data Cores Recovered 4 | . . . . . . 1 . . . 1 . . . 1 . . . . . 1 . . . Used 2 | . . . . . . 1 . . . . . . . . . . . . . 1 . . . Hacking Detections 68 | . 5 . . . 7 8 . 8 . 12 5 6 . 3 . . . . 3 3 1 5 2 Full Trace Events 5 | . . . . . 2 . . 1 . 1 1 . . . . . . . . . . . . Feedback Events . | . . . . . . . . . . . . . . . . . . . . . . . . Feedback Blocked . | . . . . . . . . . . . . . . . . . . . . . . . . Robot Schematics Acquired . | . . . . . . . . . . . . . . . . . . . . . . . . Robots Built . | . . . . . . . . . . . . . . . . . . . . . . . . Authchips . | . . . . . . . . . . . . . . . . . . . . . . . . Time . | . . . . . . . . . . . . . . . . . . . . . . . . Total Robot Build Rating . | . . . . . . . . . . . . . . . . . . . . . . . . Part Schematics Acquired 9 | . . . . . . 3 . . . 1 . 1 . . . . 4 . . . . . . Parts Built 8 | . . . . . . 2 . . . 4 . . . 2 . . . . . . . . . Authchips 6 | . . . . . . 2 . . . 3 . . . 1 . . . . . . . . . Time 207 | . . . . . . 84 . . . 77 . . . 46 . . . . . . . . . Total Part Build Rating 50 | . . . . . . 8 . . . 24 . . . 18 . . . . . . . . . Part Studies Acquired 3 | . . . . . . . . . . . . . . . . . . . . 3 . . . Parts Repaired 4 | . . . . . . 1 . . . . . 2 . . . . . . . 1 . . . Time 211 | . . . . . . 108 . . . . . 89 . . . . . . . 14 . . . Parts Recycled . | . . . . . . . . . . . . . . . . . . . . . . . . Recycled Matter . | . . . . . . . . . . . . . . . . . . . . . . . . Retrieved Matter . | . . . . . . . . . . . . . . . . . . . . . . . . Retrieved Components 11 | . . . . . . . . 4 . 6 1 . . . . . . . . . . . . Parts Scanalyzed 3 | . . . . . . 3 . . . . . . . . . . . . . . . . . Part Schematics Acquired 2 | . . . . . . 2 . . . . . . . . . . . . . . . . . Parts Damaged 1 | . . . . . . 1 . . . . . . . . . . . . . . . . . Bothacking | -11 -10 -10 -10 -9 -8 -7 -7 -7 -7 -5 -5 -4 -4 -4 -4 -4 -4 -3 -3 -3 -2 -2 -2 ------------ Run | Yrd Mat Min Exi Min Mat Fac Sto Rec Scr Fac Ext Fac Was Fac Upp Upp Zhi Pro Res Tes Res Qua Frg Used RIF Installer . | . . . . . . . . . . . . . . . . . . . . . . . . Robots Hacked 1 | . . . . . . . . . . . . . . . . . . . . 1 . . . Non-combat . | . . . . . . . . . . . . . . . . . . . . . . . . Combat 1 | . . . . . . . . . . . . . . . . . . . . 1 . . . Robot Hacks Applied 1 | . . . . . . . . . . . . . . . . . . . . 1 . . . parse_system 1 | . . . . . . . . . . . . . . . . . . . . 1 . . . Relay Couplers Released 5 | . . . . . . . . . . . . . . 2 . . . . . . . . 3 Machine Destruction 5 | . . . . . . . . . . . . . . 2 . . . . . . . . 3 Fabnet Peak Effective % . | . . . . . . . . . . . . . . . . . . . . . . . . Robots Rewired 9 | . . . . . . . . . . . 7 1 . . . . . . . 1 . . . Allies Hacked . | . . . . . . . . . . . . . . . . . . . . . . . . Hacks Repelled . | . . . . . . . . . . . . . . . . . . . . . . . . Allies | -11 -10 -10 -10 -9 -8 -7 -7 -7 -7 -5 -5 -4 -4 -4 -4 -4 -4 -3 -3 -3 -2 -2 -2 -------- Run | Yrd Mat Min Exi Min Mat Fac Sto Rec Scr Fac Ext Fac Was Fac Upp Upp Zhi Pro Res Tes Res Qua Frg Total Allies 19 | . . 1 . . . . 1 . . 3 11 2 . . . . . . . 1 . . . Largest Group 6 | . . 1 . . . . 1 . . 2 6 2 . . . . . . . 1 . . . Highest-Rated Group 290 | . . 31 . . . . 10 . . 36 290 92 . . . . . . . 148 . . . Highest-Rated Ally 159 | . . 31 . . . . 10 . . 26 159 47 . . . . . . . 148 . . . Initial UFD Resources 111 | . . . . . . . . . . 39 63 65 79 79 83 83 83 85 85 95 97 111 111 Total Orders 18 | . . . . . . . . . . 4 8 1 . . . . . . . 5 . . . STAY 9 | . . . . . . . . . . 2 3 1 . . . . . . . 3 . . . FOLLOW 6 | . . . . . . . . . . 2 2 . . . . . . . . 2 . . . AID 3 | . . . . . . . . . . . 3 . . . . . . . . . . . . Ally Attacks 162 | . . 6 . . . . . . . . 141 2 . . . . . . . 13 . . . Total Damage 3434 | . . 86 . . . . . . . . 2589 80 . . . . . . . 679 . . . Kills 22 | . . . . . . . . . . . 19 . . . . . . . . 3 . . . Allies Corrupted 1 | . . . . . . . . . . . . . . . . . . . . 1 . . . Allies Melted 1 | . . . . . . . . . . . . . . . . . . . . . . . 1 Intel | -11 -10 -10 -10 -9 -8 -7 -7 -7 -7 -5 -5 -4 -4 -4 -4 -4 -4 -3 -3 -3 -2 -2 -2 ------- Run | Yrd Mat Min Exi Min Mat Fac Sto Rec Scr Fac Ext Fac Was Fac Upp Upp Zhi Pro Res Tes Res Qua Frg Active Infowar (turns) 11857 | 88 429 . 257 845 1158 1248 128 358 908 1283 806 326 . 322 359 187 68 169 586 618 400 297 1017 Sensors 8596 | . . . . . . 796 128 358 908 1283 779 326 . 322 359 187 68 169 586 615 400 297 1015 Seismic 3229 | 88 429 . 257 845 1158 452 . . . . . . . . . . . . . . . . . Cloaking 2167 | . . . . . . . . . . . . . . . . . . . 8 618 400 186 955 Jamming 2901 | . . . . . . . . . . 13 27 . . . . . . 137 586 618 400 186 934 Robot Analysis Total 7 | . . . . . 2 . . . . . . . . . . . 4 . . . . 1 . Derelict Logs Recovered 3 | . . 2 . 1 . . . . . . . . . . . . . . . . . . . Drone Launches . | . . . . . . . . . . . . . . . . . . . . . . . . Drone Recoveries . | . . . . . . . . . . . . . . . . . . . . . . . . Exploration | -11 -10 -10 -10 -9 -8 -7 -7 -7 -7 -5 -5 -4 -4 -4 -4 -4 -4 -3 -3 -3 -2 -2 -2 ------------- Run | Yrd Mat Min Exi Min Mat Fac Sto Rec Scr Fac Ext Fac Was Fac Upp Upp Zhi Pro Res Tes Res Qua Frg Turns Passed 20019 | 314 1152 888 1235 845 2176 1657 129 358 912 1283 1137 468 87 346 499 187 660 169 586 618 403 297 3613 Spaces Moved 21687 | 139 451 533 775 550 958 2211 164 656 1387 2786 1254 1102 386 755 430 389 250 418 837 811 747 590 3108 Core 19 | 3 . . . . 2 . . . . . . . . . . . . . . . . . 14 Treads 1655 | 133 143 . . . 917 410 . . . . . . . . . . . . . . . . 52 Legs 1290 | . . . . . . . . . . . . . . . . . . . . . . . 1290 Wheels 2233 | 3 308 533 775 550 39 . . . . . . . . . . . . . . . . . 25 Hover . | . . . . . . . . . . . . . . . . . . . . . . . . Flight 16490 | . . . . . . 1801 164 656 1387 2786 1254 1102 386 755 430 389 250 418 837 811 747 590 1727 Fastest Speed 20 | 50 100 145 145 145 130 23 23 23 23 20 20 20 20 20 20 26 20 20 20 24 22 22 22 Average Speed 54 | 156 147 145 145 145 169 50 23 23 46 20 20 20 20 20 23 26 42 20 21 27 29 27 70 Slowest Speed 800 | 160 160 145 145 145 800 170 23 23 88 88 88 88 20 20 26 26 87 20 97 102 104 29 240 Overloaded Moves 358 | . . . . . . . . . . . . . . . . . . . . . 51 37 270 Propulsion Burnouts . | . . . . . . . . . . . . . . . . . . . . . . . . Robots Hopped 90 | . . . . . . 1 . . . 22 10 15 . 6 . . . 4 2 2 12 4 12 Potential Cave-ins 5 | . . . . . . . . . . . . . . . . . . . . . . . 5 Cave-ins Triggered . | . . . . . . . . . . . . . . . . . . . . . . . . Teleports 1 | . . . . . . . . . . . . . . . . . . . . . . . 1 Exploration Rate (%) 58 | 5 66 98 91 98 69 60 32 81 83 67 51 29 97 23 46 57 60 67 16 72 16 61 64 Regions Visited 23 Branch Regions 14 Pre-discovered Areas 11 | . . . 1 . . . . 6 . 1 . . . . . . 3 . . . . . . Known Exits Taken 16 | . 1 . . . . 1 1 1 1 1 1 . . 1 1 1 1 1 1 1 1 1 . Unknown Exits Taken 5 | 1 . 1 1 1 1 . . . . . . . . . . . . . . . . . . Scrap Searched 15 | . . 1 . 3 . . . . 5 . . . . . 2 2 . 2 . . . . . Spaces Dug 188 | . . . . . . 26 1 6 . 63 1 10 . 5 . . . 2 11 12 19 8 24 Terrain Destroyed 764 | . . . . . . 41 1 6 . 124 66 109 . 5 . . . 27 67 12 31 9 266 Melee 163 | . . . . . . 25 1 6 . 63 1 10 . 5 . . . 2 11 11 11 3 14 Projectile 67 | . . . . . . 5 . . . . . . . . . . . . . 1 20 6 35 AOE 534 | . . . . . . 11 . . . 61 65 99 . . . . . 25 56 . . . 217 Terrain Rammed . | . . . . . . . . . . . . . . . . . . . . . . . . Walls Destroyed . | . . . . . . . . . . . . . . . . . . . . . . . . Machines Disabled . | . . . . . . . . . . . . . . . . . . . . . . . . Actions | -11 -10 -10 -10 -9 -8 -7 -7 -7 -7 -5 -5 -4 -4 -4 -4 -4 -4 -3 -3 -3 -2 -2 -2 --------- Run | Yrd Mat Min Exi Min Mat Fac Sto Rec Scr Fac Ext Fac Was Fac Upp Upp Zhi Pro Res Tes Res Qua Frg Total 28548 | 179 812 603 838 576 1273 2620 245 825 1656 3381 2073 1281 394 924 827 472 795 497 1216 1171 879 709 4302 Wait 5194 | . 270 45 20 9 106 193 71 147 251 488 731 131 . 114 356 73 507 74 316 248 101 100 843 Move 21502 | 138 450 532 774 549 957 2208 163 655 1386 2746 1237 1074 385 744 429 388 249 410 832 807 724 581 3084 Hop 72 | . . . . . . 1 . . . 17 6 13 . 4 . . . 3 2 1 10 4 11 Pick Up 135 | 4 12 1 10 3 18 18 1 . 4 8 1 6 . 6 12 1 5 . 8 5 . 4 8 Fast Attach 116 | 7 7 . . . 12 10 1 1 6 1 4 2 4 1 2 2 9 . 2 10 . . 35 Attach 87 | . 2 2 1 . 7 17 1 . . 7 4 7 . 3 3 . 3 1 6 1 5 2 15 Detach 35 | . . . . . . 1 . . . . 5 2 . . 2 1 . 2 3 2 3 1 13 Swap 99 | . 3 . 1 1 6 12 1 . 2 5 10 8 . 7 2 1 2 2 4 1 1 3 27 Drop 180 | . . . 4 3 17 40 1 1 7 5 6 2 4 4 12 3 12 2 12 16 . 2 27 Fire 576 | 30 66 23 25 11 149 42 . . . 2 9 5 . . . . . 1 2 2 20 6 183 Melee 385 | . . . . . . 47 6 21 . 102 28 30 1 16 3 3 8 2 29 37 15 6 31 Ram . | . . . . . . . . . . . . . . . . . . . . . . . . Kick 2 | . . . . . . . . . . . . . . . . . . . . . . . 2 Crush 4 | . 2 . . . 1 1 . . . . . . . . . . . . . . . . . Escape Stasis 127 | . . . . . . 30 . . . . 20 . . 24 . . . . . 40 . . 13 Rewire 17 | . . . 3 . . . . . . . 12 1 . . . . . . . 1 . . . Trap 6 | . . . . . . . . . . . . . . . 6 . . . . . . . . Miscellaneous 11 | . . . . . . . . . . . . . . 1 . . . . . . . . 10 Route ------- -11/Scrapyard -10/Materials (discovered 4 exits: *Mat x3 / *Min) -10/Mines (discovered 4 exits: *Mat x2 / *Exi / Sub) -10/Exiles (discovered 2 exits: [*Min x2]) -9/Mines (discovered 2 exits: *Mat x2) -8/Materials (discovered 2 exits: *Fac x2) -7/Factory (discovered 7 exits: *Fac x4 / *Sto / *Low x2) -7/Storage (discovered 2 exits: Fac / *Rec) -7/Recycling (discovered 2 exits: *Fac / *Scr) -7/Scraptown (discovered 2 exits: *Fac x2) -5/Factory (discovered 8 exits: *Fac x4 / *Upp x2 / *Ext x2) -5/Extension -4/Factory (discovered 2 exits: *Res x2) -4/Waste -4/Factory (discovered 3 exits: *Upp x2 / Arm) -4/Upper Caves -4/Upper Caves (discovered 2 exits: *Res / *Zhi) -4/Zhirov -3/Proximity Caves -3/Research (discovered 4 exits: Res x2 / *Tes x2) -3/Testing -2/Research (discovered 2 exits: *Qua x2) -2/Quarantine (discovered 2 exits: *Sec / *Frg) -2/Protoforge (discovered 1 exit: *Acc) History --------- Turn | Location | Event 53 | -11/Scrapyard | Discovered new exit (range 15) 315 | -11/Scrapyard | Entered Materials 316 | -10/Materials | Build established: Mutant 819 | -10/Materials | Discovered new exit (range 16) 859 | -10/Materials | Core integrity fell below 50% 1040 | -10/Materials | Learned Storage emergency access door positions 1093 | -10/Materials | Identified exit to Mines 1136 | -10/Materials | Learned 2 Storage zone layouts 1168 | -10/Materials | Identified exit to Materials 1220 | -10/Materials | Learned location of 2 exits from Mines 1467 | -10/Materials | Entered Mines 1469 | -10/Mines | Identified exit to Subcaves 1503 | -10/Mines | Met a Derelict bent on vengeance 1914 | -10/Mines | Learned Materials trap positions 1930 | -10/Mines | Received a Mining Laser from a helpful Derelict 2009 | -10/Mines | Learned Materials stockpile data 2288 | -10/Mines | Deemed a non-threat by the Exiles lab entrance 2349 | -10/Mines | Discovered new exit (range 5) 2355 | -10/Mines | Entered Exiles 2355 | -10/Exiles | Found Exiles lab destroyed 2374 | -10/Exiles | Discovered new exit (range 15) 2586 | -10/Exiles | Opened EX-Vault 2688 | -10/Exiles | Learned location of Zion (-6) 3579 | -10/Exiles | Discovered new exit (range 10) 3590 | -10/Exiles | Entered Mines 3739 | -9/Mines | Found a damaged Exp. Sensor Array with a note attached 3745 | -9/Mines | Found Prototype Device 3925 | -9/Mines | Learned Materials emergency access door positions 3991 | -9/Mines | Discovered new exit (range 8) 4078 | -9/Mines | Discovered new exit (range 8) 4435 | -9/Mines | Entered Materials 4435 | -8/Materials | Evolved 4 slots: Propulsion x2, Utility x2 4436 | -8/Materials | Loaded intel: 16 trap records 4564 | -8/Materials | Garrison activated, responded to threat 4695 | -8/Materials | Lost 4 parts (1p1n1u1w) 4763 | -8/Materials | Lost 4 parts (4n) 5014 | -8/Materials | Discovered new exit (range 12) 6205 | -8/Materials | Discovered new exit (range 3) 6384 | -8/Materials | Identified Exp. Sensor Array 6611 | -8/Materials | Entered Factory 6611 | -7/Factory | Evolved 2 slots: Propulsion x1, Utility x1 6694 | -7/Factory | Discovered new exit (range 9) 7319 | -7/Factory | Discovered new exit (range 15) 7574 | -7/Factory | Discovered new exit (range 16) 7578 | -7/Factory | Identified exit to Lower Caves 7721 | -7/Factory | Build established: Sprinter 7790 | -7/Factory | Discovered new exit (range 16) 7856 | -7/Factory | Discovered new exit (range 10) 7860 | -7/Factory | Discovered exit to Lower Caves (range 13) 7936 | -7/Factory | Fabricated Mak. Hacking Suite (x1) 7981 | -7/Factory | Fabricated Mak. Hacking Suite (x1) 7990 | -7/Factory | Identified exit to Factory 8052 | -7/Factory | Build established: Hacker-Sprinter 8104 | -7/Factory | Discovered exit to Factory (range 8) 8175 | -7/Factory | Repaired Exp. Sensor Array 8268 | -7/Factory | Identified exit to Storage 8268 | -7/Factory | Entered Storage 8298 | -7/Storage | Used back door to open Recycling access 8298 | -7/Storage | Discovered new exit (range 5) 8380 | -7/Storage | Found Prototype Launcher 8380 | -7/Storage | Identified Rocket Array 8397 | -7/Storage | Identified exit to Recycling 8397 | -7/Storage | Entered Recycling 8522 | -7/Recycling | Discovered new exit (range 7) 8641 | -7/Recycling | Learned Extension security intel 8653 | -7/Recycling | Learned location of 2 exits from Archives 8669 | -7/Recycling | Learned location of 1 exit from Proximity Caves 8749 | -7/Recycling | Scanned before Scraplab entrance 8753 | -7/Recycling | Entered Scraplab 8755 | -7/Recycling | Discovered new exit (range 2) 8755 | -7/Recycling | Identified exit to Scraptown 8755 | -7/Recycling | Entered Scraptown 8755 | -7/Scraptown | System corruption cleaned by C-Scrubber 8756 | -7/Scraptown | Identified exit to Factory 8809 | -7/Scraptown | Visited Comm Corps 8812 | -7/Scraptown | Visited The Evicted 8823 | -7/Scraptown | Visited Spacefarers 8830 | -7/Scraptown | Visited Assassins FH 8840 | -7/Scraptown | Visited Fellowship of the Rings 8889 | -7/Scraptown | Visited UFD Registry 8889 | -7/Scraptown | Registered with UFD as "Wrenchslasher" 8897 | -7/Scraptown | Visited Scrap Suit Storage 8901 | -7/Scraptown | Visited Junk Cannon Lab 8905 | -7/Scraptown | Visited A0-MCA Data Center 8908 | -7/Scraptown | Visited Sword Containment 8911 | -7/Scraptown | Visited Scrapoid Research Area 8914 | -7/Scraptown | Visited Infowarlord's Domain 8916 | -7/Scraptown | Found Exp. Sensor Array 8927 | -7/Scraptown | Received an X-ray algorithm 8929 | -7/Scraptown | Visited Science Guys 8936 | -7/Scraptown | Visited Observation Area 8944 | -7/Scraptown | Visited DA-N13 Charitable Foundation 8945 | -7/Scraptown | Found DCF Scrap (28 items) 9254 | -7/Scraptown | Build established: Hacker-Mutant 9268 | -7/Scraptown | Visited Cyclists 9274 | -7/Scraptown | Entered Cyclist Reading Room 9621 | -7/Scraptown | Met Optimus 9621 | -7/Scraptown | Accepted into 0bPrime 9667 | -7/Scraptown | Entered Factory 9667 | -5/Factory | Evolved 4 slots: Propulsion x1, Utility x3 9722 | -5/Factory | Discovered new exit (range 12) 9724 | -5/Factory | Identified exit to Upper Caves 9724 | -5/Factory | Identified exit to Extension 9754 | -5/Factory | Discovered new exit (range 13) 9756 | -5/Factory | Identified exit to Factory 9780 | -5/Factory | Loaded intel: 8 recycling unit locations 9830 | -5/Factory | Learned location of Protoforge (-2) 9969 | -5/Factory | Build established: Hacker-Sprinter 10008 | -5/Factory | Discovered exit to Factory (range 16) 10309 | -5/Factory | Learned Armory garrison access intel 10367 | -5/Factory | Learned 2 Proximity Caves zone layouts 10417 | -5/Factory | Learned location of 1 exit from Research 10423 | -5/Factory | Discovered exit to Factory (range 6) 10481 | -5/Factory | Learned location of 1 exit from Armory 10519 | -5/Factory | Learned location of 1 exit from Research 10549 | -5/Factory | Watched by a mysterious "MATRIX" hacker. 10566 | -5/Factory | Fabricated Adv. Hacking Suite (x1) 10584 | -5/Factory | Fabricated Adv. Hacking Suite (x1) 10604 | -5/Factory | Fabricated Adv. Hacking Suite (x1) 10625 | -5/Factory | Learned location of 2 exits from Factory 10679 | -5/Factory | Fabricated Adv. Hacking Suite (x1) 10795 | -5/Factory | Central database locked down 10950 | -5/Factory | Entered Extension 10976 | -5/Extension | Build established: Wizard-Sprinter 11057 | -5/Extension | Rescued A7 11059 | -5/Extension | Attached CPS modules to A7. 11245 | -5/Extension | Found Prototype Protection 11245 | -5/Extension | Identified Med. Regenerative Plating 11342 | -5/Extension | Rescued a captive Derelict 11343 | -5/Extension | Rescued a captive Derelict 11490 | -5/Extension | Rescued a captive Derelict 11850 | -5/Extension | First assault squad dispatched 12003 | -5/Extension | Spotted B-75 Beast 12017 | -5/Extension | Allies destroyed B-75 Beast 12026 | -5/Extension | Spotted B-75 Beast 12060 | -5/Extension | Destroyed B-75 Beast 12066 | -5/Extension | Extracted ID and sensor layout for unrecognized location from A7's data core 12076 | -5/Extension | Discovered exit to Factory (range 3) 12083 | -5/Extension | Lost 4 allies 12087 | -5/Extension | Entered Factory 12087 | -4/Factory | Accompanied by 2 allies 12087 | -4/Factory | Evolved 2 slots: Power x1, Utility x1 12088 | -4/Factory | Identified exit to Research 12209 | -4/Factory | Repaired Imp. Cesium-ion Thruster 12264 | -4/Factory | Repaired Exp. Sensor Array 12368 | -4/Factory | Loaded intel: 8 recycling unit locations 12467 | -4/Factory | Lost 3 parts (1n1u1w) 12555 | -4/Factory | Manually triggered Chute Trap 12555 | -4/Factory | Sucked down chute 12555 | -4/Factory | Entered Waste 12555 | -4/Waste | The area was eerily silent 12613 | -4/Waste | Discovered new exit (range 10) 12642 | -4/Waste | Identified exit to Factory 12642 | -4/Waste | Entered Factory 12878 | -4/Factory | Loaded intel: 8 recycling unit locations 12934 | -4/Factory | Identified exit to Upper Caves 12934 | -4/Factory | Identified exit to Armory 12971 | -4/Factory | Fabricated Adv. Cloaking Device (x2) 12988 | -4/Factory | Entered Upper Caves 13422 | -4/Upper Caves | Encountered a Warlord checkpoint 13452 | -4/Upper Caves | Discovered new exit (range 10) 13487 | -4/Upper Caves | Identified exit to Upper Caves 13487 | -4/Upper Caves | Entered another Upper Caves area 13559 | -4/Upper Caves | Discovered exit to Research (range 13) 13666 | -4/Upper Caves | Discovered new exit (range 5) 13668 | -4/Upper Caves | Identified exit to Zhirov 13674 | -4/Upper Caves | Entered Zhirov 13674 | -4/Zhirov | Discovered new exit (range 3) 13680 | -4/Zhirov | Met Zhirov 13684 | -4/Zhirov | Learned location of Quarantine (-2) 13684 | -4/Zhirov | Learned location of Testing (-3) 13684 | -4/Zhirov | Learned location of Command (-1) 13687 | -4/Zhirov | Zhirov requested help retrieving the SGEMP Prototype 13692 | -4/Zhirov | Found Alien Artifact 13692 | -4/Zhirov | Identified Integrated Dissipator 13692 | -4/Zhirov | Installed Integrated Dissipator, increased core heat dissipation (+20) 13787 | -4/Zhirov | Found Alien Artifact 13944 | -4/Zhirov | Build established: Wizard-Mutant 14334 | -4/Zhirov | Identified exit to Proximity Caves 14334 | -4/Zhirov | Entered Proximity Caves 14364 | -3/Proximity Caves | Spotter reported a threat 14382 | -3/Proximity Caves | Spotter reported a threat 14503 | -3/Proximity Caves | Entered Research 14503 | -3/Research | Evolved 2 slots: Utility x2 14504 | -3/Research | Identified exit to Research 14513 | -3/Research | Loaded intel: 5 recycling unit locations 14627 | -3/Research | Build established: Wizard-Sprinter 14683 | -3/Research | Identified exit to Testing 14753 | -3/Research | Search patrols dispatched 15003 | -3/Research | Search patrols dispatched 15089 | -3/Research | Entered Testing 15111 | -3/Testing | Central database locked down 15162 | -3/Testing | Rewired PH-12CBVUX4V3 15345 | -3/Testing | Build established: Hacker-Sprinter 15477 | -3/Testing | Found Corrupted Zero-point Reactor 15502 | -3/Testing | Repaired Mak. Axe 15512 | -3/Testing | Discovered exit to Research (range 15) 15518 | -3/Testing | Found Prototype Energy Cannon 15518 | -3/Testing | Identified Cld. Nova Cannon 15592 | -3/Testing | Found Hellfire Missile Launcher 15707 | -3/Testing | Entered Research 15707 | -2/Research | Evolved 2 slots: Propulsion x1, Utility x1 15771 | -2/Research | Loaded intel: 5 recycling unit locations 15947 | -2/Research | Identified exit to Quarantine 16002 | -2/Research | Spotted B-90 Cyclops 16110 | -2/Research | Entered Quarantine 16250 | -2/Quarantine | Found Alien Artifact 16260 | -2/Quarantine | Found Alien Artifact 16334 | -2/Quarantine | Found Alien Artifact 16389 | -2/Quarantine | Spotted Fortress 16405 | -2/Quarantine | Discovered new exit (range 5) 16405 | -2/Quarantine | Discovered new exit (range 8) 16406 | -2/Quarantine | Identified exit to Section 7 16407 | -2/Quarantine | Identified exit to Protoforge 16407 | -2/Quarantine | Entered Protoforge 16407 | -2/Protoforge | Identified Transdimensional Reconstructor 16407 | -2/Protoforge | Warped through subspace 16413 | -2/Protoforge | Spotted Hotshot 16413 | -2/Protoforge | Spotted Hotshot 16424 | -2/Protoforge | Discovered new exit (range 3) 16425 | -2/Protoforge | Identified exit to Access 16503 | -2/Protoforge | Spotted Hotshot 16709 | -2/Protoforge | Spotted Hotshot 16996 | -2/Protoforge | Identified Subatomic Replicator 16996 | -2/Protoforge | Used Subatomic Replicator to replicate Alien Artifact 17084 | -2/Protoforge | Identified Phase Redirector (x2) 17140 | -2/Protoforge | Spotted AP7-3 17140 | -2/Protoforge | Spotted AP7-3 17142 | -2/Protoforge | Spotted Hotshot 17145 | -2/Protoforge | Superfortress began startup sequence 17163 | -2/Protoforge | Spotted Hotshot 17163 | -2/Protoforge | Spotted EXE-6 17163 | -2/Protoforge | Spotted EXE-6 17166 | -2/Protoforge | Spotted Decapitator 17167 | -2/Protoforge | Spotted Decapitator 17177 | -2/Protoforge | UFD initiated attack on Protoforge (Readiness: High) 17177 | -2/Protoforge | Loaded intel: 3 recycling unit locations 17189 | -2/Protoforge | Spotted EXE-6 17189 | -2/Protoforge | Spotted EXE-6 17268 | -2/Protoforge | Spotted V834-r 17268 | -2/Protoforge | Spotted V124-d 17268 | -2/Protoforge | Spotted V019-m 17268 | -2/Protoforge | Spotted V795-o 17278 | -2/Protoforge | Found Prototype Device 17278 | -2/Protoforge | Identified Cep. Recoil Nullifier 17283 | -2/Protoforge | Found Prototype Device 17288 | -2/Protoforge | Spotted Decapitator 17288 | -2/Protoforge | Spotted Decapitator 17288 | -2/Protoforge | Spotted Decapitator 17288 | -2/Protoforge | Spotted Decapitator 17288 | -2/Protoforge | Spotted Immortal 17288 | -2/Protoforge | Spotted Immortal 17298 | -2/Protoforge | Found Prototype Power Core 17298 | -2/Protoforge | Identified Cep. Zero-point Core 17304 | -2/Protoforge | Found Cep. Zero-point Core 17435 | -2/Protoforge | UFD reported confirmed Drillbomb installation 17455 | -2/Protoforge | Spotted Overlord 17472 | -2/Protoforge | Found Prototype Device 17472 | -2/Protoforge | Identified Exp. Weapon Cycler 17474 | -2/Protoforge | Found Adv. Kinecellerator 17479 | -2/Protoforge | Found Exp. Remote Shield 17488 | -2/Protoforge | Found Prototype Protection 17488 | -2/Protoforge | Identified Centrium Heavy Armor Plating 17488 | -2/Protoforge | Spotted Executioner 17491 | -2/Protoforge | Lost 4 parts (1p3u) 17497 | -2/Protoforge | Lost 5 allies 17516 | -2/Protoforge | Spotted Executioner 17522 | -2/Protoforge | Destroyed Executioner 17535 | -2/Protoforge | Spotted Striker 17535 | -2/Protoforge | Spotted Executioner 17589 | -2/Protoforge | Lost 4 allies 17622 | -2/Protoforge | Found Prototype Processor 17622 | -2/Protoforge | Identified Exp. Core Analyzer 17623 | -2/Protoforge | Spotted Hotshot 17623 | -2/Protoforge | Spotted Striker 17625 | -2/Protoforge | Spotted Executioner 17644 | -2/Protoforge | UFD reported confirmed Drillbomb installation 17646 | -2/Protoforge | Destroyed Striker 17671 | -2/Protoforge | Lost 4 allies 17694 | -2/Protoforge | Found Exp. Targeting Computer 17698 | -2/Protoforge | Found Exp. Core Analyzer 17725 | -2/Protoforge | UFD reported confirmed Drillbomb installation 17743 | -2/Protoforge | Spotted Executioner 17754 | -2/Protoforge | Destroyed Executioner 17784 | -2/Protoforge | Lost 3 allies 17784 | -2/Protoforge | Spotted Executioner 17786 | -2/Protoforge | Spotted Striker 17787 | -2/Protoforge | Build established: Scavenger-Mutant 17814 | -2/Protoforge | Destroyed Striker 17821 | -2/Protoforge | Destroyed Executioner 17871 | -2/Protoforge | Spotted Striker 17872 | -2/Protoforge | Spotted Executioner 17872 | -2/Protoforge | Spotted Striker 17875 | -2/Protoforge | Spotted Striker 17878 | -2/Protoforge | Destroyed Striker 17943 | -2/Protoforge | Lost 5 allies 18025 | -2/Protoforge | Spotted Executioner 18042 | -2/Protoforge | Spotted Executioner 18262 | -2/Protoforge | UFD reported confirmed Drillbomb installation 18447 | -2/Protoforge | UFD reported confirmed Drillbomb installation 18490 | -2/Protoforge | Spotted Executioner 18497 | -2/Protoforge | Destroyed Executioner 18531 | -2/Protoforge | Lost 7 allies 18550 | -2/Protoforge | Found Exp. Core Analyzer 18556 | -2/Protoforge | Found Exp. Core Analyzer 18660 | -2/Protoforge | Spotted Striker 18664 | -2/Protoforge | Spotted Striker 18669 | -2/Protoforge | Spotted Striker 18670 | -2/Protoforge | Spotted Striker 18719 | -2/Protoforge | Lost 5 allies 18788 | -2/Protoforge | UFD reported confirmed Drillbomb installation 18896 | -2/Protoforge | Spotted Executioner 18900 | -2/Protoforge | Spotted Striker 18946 | -2/Protoforge | Lost 4 allies 18998 | -2/Protoforge | Spotted Executioner 19001 | -2/Protoforge | Destroyed Executioner 19016 | -2/Protoforge | Lost 6 allies 19198 | -2/Protoforge | Spotted Executioner 19210 | -2/Protoforge | Destroyed Executioner 19231 | -2/Protoforge | UFD reported confirmed Drillbomb installation 19344 | -2/Protoforge | Spotted Striker 19346 | -2/Protoforge | Core integrity fell below 50% 19346 | -2/Protoforge | Spotted Striker 19360 | -2/Protoforge | Spotted Striker 19363 | -2/Protoforge | Spotted Executioner 19380 | -2/Protoforge | Spotted Executioner 19387 | -2/Protoforge | Spotted Executioner 19388 | -2/Protoforge | Destroyed Executioner 19409 | -2/Protoforge | Destroyed 9 combat bots 19415 | -2/Protoforge | Lost 8 allies 19429 | -2/Protoforge | Destroyed Executioner 19433 | -2/Protoforge | Spotted Executioner 19434 | -2/Protoforge | Destroyed Executioner 19436 | -2/Protoforge | Destroyed Striker 19443 | -2/Protoforge | Destroyed Striker 19464 | -2/Protoforge | Destroyed 13 combat bots 19466 | -2/Protoforge | Spotted Executioner 19472 | -2/Protoforge | Spotted Executioner 19479 | -2/Protoforge | Destroyed Executioner 19511 | -2/Protoforge | UFD reported confirmed Drillbomb installation 19608 | -2/Protoforge | UFD reported confirmed Drillbomb installation 19645 | -2/Protoforge | Spotted Executioner 19647 | -2/Protoforge | Spotted Executioner 19654 | -2/Protoforge | Spotted Striker 19676 | -2/Protoforge | Spotted Striker 19679 | -2/Protoforge | Spotted Striker 19685 | -2/Protoforge | Core integrity fell below 20% 19712 | -2/Protoforge | Spotted Executioner 19728 | -2/Protoforge | P-80 Master assimilated allied 02FED-D 19773 | -2/Protoforge | Lost 28 allies 19842 | -2/Protoforge | Found UFD Drillbomb 19952 | -2/Protoforge | Installed UFD Drillbomb at designated target 19952 | -2/Protoforge | UFD reported confirmed Drillbomb installation 19953 | -2/Protoforge | UFD began Drillbomb countdown 19971 | -2/Protoforge | Spotted Striker 19975 | -2/Protoforge | Spotted Executioner 20011 | -2/Protoforge | Released all parts (12) 20020 | -2/Protoforge | Destroyed by Y-72 Warden with Quantum Rifle Last Messages --------------- 20011_ Released Centrium Heavy Armor Plating. 20011_ Released Cep. Zero-point Core. 20011_ Released Adv. Power Amplifier. 20011_ Released Exp. Weapon Cycler. 20011_ Released Enh. Biometal Leg. 20011_ Released Med. Regenerative Plating. 20011_ Released Exp. Targeting Computer. 20011_ Released Exp. Core Analyzer. 20011_ Released Myomer Leg. 20011_ Released Lgt. Humpback. 20011_ Released Com. HERF Cannon. 20011_ Acquired Xenon Bombardment Thruster. 20012_ Xenon Bombardment Thruster destroyed. 20012_ Acquired 5 matter. 20013_ Acquired Xenon Bombardment Thruster. 20013_ Xenon Bombardment Thruster destroyed. 20016_ Slug penetrates Wall. 20018_ Penetrated by Slug. 20018_ Slug penetrates Earth. 20020_ Penetrated by Slug. Map ----- +----------------------------------------------------+ | ???## # # " ##????????######## | | ???## " # # ##????????##?????? | | ???## """"" # #""""#######????????##?????? | | ???## " """ # #####????????##?????? | | ???## """ / % ##???????????##?????? | | ???## " """" # ##???????????##?????? | | ???## " % # ##??????????###?????? | | ???## ####+##" ##??????????######?## | | ???## ## # = ##??????????##??????? | | ???## ## # ##??????????##??????? | | ##### ## # ##??????????##??????? | | ######"#+""######## # ##????###???##??????? | | ## ######### # ####### #???##??????? | | ## ##### ## """ # ####### #???##??????? | | ## # #### # ## ## #???##?? """? | | ## "" # #### # # %## ###?##"" """? | | ## " "" #!< #*#####%#;% ##%% # ####"" ? | | ## """"=/=[ * % |! Y ## #### """? | | ## " ""=* % *=!=%*%= &%* %% """" | | ## #!*] % * =[%! % "" | | ## [ "!! %== [ =[ | | ######%########### # ; # =[ % *%|% | | ######=########## #### # = " %[! | | ????##[##???????##??## K # #### # """""!! | | ????##!##???????????## [ """"!## | | ????##[##???????????## @ =%! % !% [%=% | | ????##%*#######?????## = [ % [ = =! | | ????##|"#######?????## ##%% ![ | | ????##!%=[!%*"#?????## # % = %% %![==!%! | | ############=##?????## = % % =[= | | ############ ##?????## " ![%=!|= %[%% % | | # ???# ##?????########; ## %=[=![!% %%% % | | # " " " ??# ##?????########## !!/*%*![*[ % !% | | # " "" ??# ##?????????????# ; %!!!=!*=*= %% %%=% | | # """ ?# ##????????????###";# %/%=/!= %!* | | # " " ?# ############### # !=!|[%%=[! * "=[%! | | # " "" # #############"##"##!!%!!!%=%= !!%!&== | | # """ # ] [==%%!%% [[!/=! | | # + ^ ! % %=%*== ![!!! | | # # [![ ^^% % % == !=!=* | | # # =%! ^^ % %%![ =!!!![ | | # """" "#####+#######""% %* % !=#!!%* | | # "### # ###" % !!=[!%%= | | # #### # ## #% % %!!!!*%=# | | # ##"" # #### % [ [%#]=!%%# | | # ?##T # ###" =!!"%!%%![%%!* | | ############### # ###" *%! %=%!*%|%%% | | ####?########## #####+##########" !! &*%!!=*=! | | ??##?##########+##### ## " % % = *%% | | ??##?###" "### "# " %"""""="#####" | +----------------------------------------------------+ Best States ------------- Heat Dissipation 107 Energy Generation 72 Energy Capacity 470 Matter Stores 300 Matter Capacity 600 Sight Range 16 Robot Scan Range 20 Terrain Scan Density 10 Jamming Range 16 Cloak Strength 4 Power Amplification 30 Additional Mass Support 16 Armor Coverage 975 Utility Shielding 90 Weapon Shielding 90 Weapon Cycling 30 Evasion (%) 77 Targeting Accuracy 16 Core Analysis 12 Recoil Reduction 99 Kinecelleration 50 Offensive Hacking 70 Defensive Hacking 14 Authchip Count 2 Item Schematics ----------------- Mak. Hacking Suite | -7/Factory | Scanalyzed Cesium-ion Thruster | -7/Factory | Scanalyzed Adv. Signal Interpreter | -7/Factory | Hacked Adv. Hacking Suite | -5/Factory | Hacked Adv. Cloaking Device | -4/Factory | Hacked Assault Drone Bay | -4/Zhirov | Free Exp. Heat Sink | -4/Zhirov | Free Exp. Optical Array | -4/Zhirov | Free Imp. Arc Thrower | -4/Zhirov | Free Robot Schematics ------------------ None Fabricated ------------ Mak. Hacking Suite | x1 | -7/Factory | Authchip Mak. Hacking Suite | x1 | -7/Factory | Authchip Adv. Hacking Suite | x1 | -5/Factory | Authchip Adv. Hacking Suite | x1 | -5/Factory | Authchip Adv. Hacking Suite | x1 | -5/Factory | Authchip Adv. Hacking Suite | x1 | -5/Factory Adv. Cloaking Device | x2 | -4/Factory | Authchip Repaired ---------- Exp. Sensor Array | 10% | -7/Factory Imp. Cesium-ion Thruster | 1% | -4/Factory Exp. Sensor Array | 34% | -4/Factory Mak. Axe | 16% | -3/Testing Studied --------- Field Propulsion Drive | -3/Testing | Hacked Lgt. Particle Reactor | -3/Testing | Hacked Micro-nuke Launcher | -3/Testing | Hacked Alien Tech Used ----------------- Integrated Dissipator Transdimensional Reconstructor Subatomic Replicator Phase Redirector Achievements -------------- None Challenges ------------ None Game ------ Seed BoltMediumPod Manual? 0 Play Time 04:02:01 Cumulative 333.4 hours Start 2026.03.07 @ 06:12:37 End 2026.03.07 @ 10:27:13 Sessions 1 Manual Loads 0 Difficulty Rogue Special Mode None Game No. 267 Rogue 267 Adventurer 0 Explorer 0 Win Type - Total 19 Types 10/0/7/2/0/0/0/0/0/0 Lore% 85 Gallery% 76 Achievement% 64 Wizard Run 0 Options --------- Layout 1 ASCII 0 Keyboard 0 Movement Numpad Keybinds 0 Fullscreen 1 Font 32/SmallcapsGlow Map View 77x35 Zoom Use 0% Tactical HUD 1 Map Filters NONE Filters NONE Steam 1 RUN: 1cfc1478-2046-4387-ad5e-2fe46c427a74